Cogmind - Beta 14 @@@ ROGUE MODE // 2024.11.13 @ 17:53:02 Player: Knjet Result: Destroyed by VI-LBM(z) with Zionite Laser-S Performance ------------- Evolutions (1) 500 Regions Visited (5) 1000 Robots Destroyed (31) 155 Value Destroyed (775) 775 Prototype IDs (2) 40 Alien Tech Used (0) 0 Bonus (1600) 1600 TOTAL SCORE: 4070 Bonus ------- Met Imprinter 300 Was Imprinted 300 Destroyed Z-Imprinter 1000 Cogmind --------- Core Integrity 0/400 Matter 235/300 Energy 86/100 System Corruption 0% Temperature Cool (9) Movement Core (350) Ox6 Location -7/Deep Caves Parts ------- > --- POWER (1) -------- (None) > --- PROPULSION (3) --- (None) > --- UTILITY (3) ------ Phasing AFG > --- WEAPON (2) ------- (None) > --- INVENTORY (5) ---- Flight Unit Flight Unit Flight Unit Improved Terrain Scanner Self-destruct Interrupter (50) Peak State ------------ > --- POWER ------------ Light Ion Engine > --- PROPULSION ------- Light Treads Light Treads Light Treads > --- UTILITY ---------- Medium Storage Unit Improved Terrain Scanner Phasing AFG > --- WEAPON ----------- Beam Rifle RU-N14's Throwing Claymores > --- INVENTORY -------- Flight Unit Flight Unit Flight Unit Flight Unit Improved Terrain Scanner Hacking Drone Bay Rocket Launcher RU-N14's Throwing Claymores Self-destruct Interrupter [Rating: 33] Favorites ----------- Power Light Ion Engine Engine Light Ion Engine Propulsion Light Treads Treads Light Treads Leg Aluminum Leg Flight Unit Flight Unit Utility Improved Terrain Scanner Device Improved Terrain Scanner Storage Medium Storage Unit Weapon Beam Rifle Energy Gun Beam Rifle Energy Cannon Particle Cannon Ballistic Gun Assault Rifle Launcher Rocket Launcher Special Weapon RU-N14's Throwing Claymores Build | -11 -10 -9 -9 -7 -7 ------- Run | Yrd Mat Mat Min Zio Dee Slots Evolved 2 | . . 2 . . . Power . | . . . . . . Propulsion 1 | . . 1 . . . Utility 1 | . . 1 . . . Weapon . | . . . . . . Parts Attached 27 | 7 4 7 3 2 4 Power 5 | 1 1 1 2 . . Engine 5 | 1 1 1 2 . . Core . | . . . . . . Reactor . | . . . . . . Propulsion 8 | 2 2 3 . . 1 Treads 5 | 2 . 3 . . . Leg 2 | . 2 . . . . Wheel . | . . . . . . Hover . | . . . . . . Flight 1 | . . . . . 1 Utility 5 | 2 1 1 . 1 . Device 3 | 1 . 1 . 1 . Storage 2 | 1 1 . . . . Processor . | . . . . . . Hackware . | . . . . . . Protection . | . . . . . . Artifact . | . . . . . . Weapon 9 | 2 . 2 1 1 3 Energy Gun 3 | 1 . 2 . . . Energy Cannon 1 | . . . 1 . . Ballistic Gun 1 | 1 . . . . . Ballistic Cannon . | . . . . . . Launcher 1 | . . . . . 1 Special Weapon 3 | . . . . 1 2 Impact Weapon . | . . . . . . Slashing Weapon . | . . . . . . Piercing Weapon . | . . . . . . Special Melee Weapon . | . . . . . . Unidentified Prototypes 2 | . . . . 2 . Parts Lost 13 | . . 3 2 . 8 Power 3 | . . 1 1 . 1 Propulsion 4 | . . . . . 4 Utility 2 | . . . 1 . 1 Weapon 4 | . . 2 . . 2 Highest Loss Streak 8 | . . 3 2 . 8 To Critical Strikes . | . . . . . . Average Slot Usage (%) 94 | . 100 92 88 98 78 Engine 10 | . 14 10 9 11 8 Treads 29 | . 24 23 33 33 23 Leg 1 | . 3 7 . . . Device 17 | . 14 17 13 20 19 Storage 11 | . 14 11 11 11 10 Energy Gun 14 | . 14 19 19 11 8 Energy Cannon 3 | . . . 2 7 . Ballistic Gun 2 | . 14 1 . . . Special Weapon 1 | . . . . 3 6 Peak Build Rating 33 | 9 10 15 15 33 33 Average Rating 18 | 5 9 13 13 26 28 On Entrance 13 | . 9 10 15 13 33 Naked Turns . | . . . . . . Heaviest Build 45 | 12 19 25 25 45 45 Greatest Support 60 | 40 40 60 60 60 60 Greatest Overweight (x) 6 | 1 . 1 . . 6 Average Overweight (x) . | . . . . . . Largest Inventory Capacity 10 | 8 10 10 10 10 10 Average Capacity 9 | 6 8 10 10 10 9 Most Carried 10 | 4 10 10 10 10 10 Average Carried 9 | 2 6 9 9 9 9 Final Capacity 10 | 8 10 10 10 10 5 Final Carried 10 | 4 9 10 10 10 5 Class Distribution -------------------- 77% | Scavenger-Mutant 22% | Mutant Dominant Class ---------------- Mutant | -10/Materials Scavenger-Mutant | -9/Materials Scavenger-Mutant | -9/Mines Scavenger-Mutant | -7/Zion Scavenger-Mutant | -7/Deep Caves Resources | -11 -10 -9 -9 -7 -7 ----------- Run | Yrd Mat Mat Min Zio Dee Matter Collected 722 | 303 115 125 159 20 . Remotely . | . . . . . . Salvage Created 1210 | 142 316 293 359 . 100 Parts 65 | 10 20 15 15 . 5 Haulers Intercepted . | . . . . . . Recyclers Shooed 1 | 1 . . . . . Parts Field Recycled . | . . . . . . Retrieved Matter . | . . . . . . Parts Self-Destructed . | . . . . . . Prevented . | . . . . . . Kills | -11 -10 -9 -9 -7 -7 ------- Run | Yrd Mat Mat Min Zio Dee Combat Hostiles Destroyed 26 | . 9 5 10 . 2 Guns 21 | . 9 5 7 . . Cannons 2 | . . . 2 . . AOE 2 | . . . . . 2 Classes Destroyed 11 | 2 3 1 3 . 2 Worker 1 | . . . 1 . . Tunneler 2 | 2 . . . . . Recycler 2 | 1 . . 1 . . Watcher 2 | . 1 1 . . . Swarmer 6 | . 3 . 3 . . Grunt 12 | . 6 2 4 . . Brawler 1 | . . . 1 . . Sentry 3 | . . 3 . . . Z-Technician 4 | . . . . . 4 Z-Light 1 | . . . . . 1 Assembled 2 | . . . 2 . . Best Kill Streak 5 | 3 3 1 3 . 5 Combat Bots Only 3 | . 3 1 3 . 1 Max Kills in Single Turn 2 | 1 1 1 1 . 2 Gunslinging . | . . . . . . Exploded 1 | . . . . . 1 Melee . | . . . . . . Uniques/NPCs Destroyed 1 | . . . . . 1 Z-Imprinter (-7/Deep Caves) Combat | -11 -10 -9 -9 -7 -7 -------- Run | Yrd Mat Mat Min Zio Dee Hostile Shots Fired 163 | . 46 28 33 . 56 Missed 44 | . 9 11 8 . 16 Damage Taken 2185 | . 444 233 365 . 1143 Core 512 | . 89 14 41 . 368 Absorbed by Shields . | . . . . . . Core Remaining (%) 82 | 100 64 . . . . Volleys Fired 120 | 11 36 23 32 . 18 Largest 2 | 2 2 2 2 . 2 Hottest 124 | 60 60 112 124 . 56 Shots Fired 221 | 22 72 35 66 . 26 Gun 194 | 22 72 35 54 . 11 Cannon 12 | . . . 12 . . Launcher 5 | . . . . . 5 Special 10 | . . . . . 10 Kinetic 55 | 11 36 8 . . . Thermal 151 | 11 36 27 66 . 11 Explosive 15 | . . . . . 15 Electromagnetic . | . . . . . . Robot Hit Streak 12 | 6 12 10 10 . 5 Robot Miss Streak 4 | 4 2 3 4 . 1 Penetration Max . | . . . . . . Secondary Targets . | . . . . . . Shots Hit Robots 122 | 12 47 27 33 . 3 Core Hits 65 | 4 20 10 17 . 14 Critical Kills . | . . . . . . Critical Parts Destroyed . | . . . . . . Critical Strikes 7 | . . 1 4 . 2 Burn 7 | . . 1 4 . 2 Melee Attacks . | . . . . . . Impact . | . . . . . . Slashing . | . . . . . . Piercing . | . . . . . . Sneak Attacks . | . . . . . . Combat Hostiles . | . . . . . . Follow-up Attacks . | . . . . . . Damage Inflicted 2472 | 141 563 381 498 . 889 Guns 1620 | 141 560 381 436 . 102 Cannons 62 | . . . 62 . . Explosions 703 | . . . . . 703 Melee . | . . . . . . Ramming 3 | . 3 . . . . Kinetic 389 | 75 263 51 . . . Thermal 1293 | 66 297 330 498 . 102 Explosive 703 | . . . . . 703 Electromagnetic . | . . . . . . Impact . | . . . . . . Slashing 84 | . . . . . 84 Piercing . | . . . . . . Highest Corruption 11 | . . 2 11 11 . Average Corruption 7 | . . 2 9 11 . Corruption Purged . | . . . . . . Corruption Blocked . | . . . . . . Effects 37 | . . 4 31 2 . Message Errors 8 | . . . 6 2 . Matter Fused 14 | . . 3 11 . . Heat Flow Errors 4 | . . 1 3 . . Energy Discharges 4 | . . . 4 . . Data Loss (minor) 2 | . . . 2 . . Data Loss (major) 1 | . . . 1 . . Misfires 3 | . . . 3 . . Weapon Failures 1 | . . . 1 . . Overload Shots . | . . . . . . Overflow Damage 13 | . . . . . 13 Projectiles . | . . . . . . Explosions 13 | . . . . . 13 Melee . | . . . . . . Knockbacks . | . . . . . . Impact . | . . . . . . Kinetic . | . . . . . . Secondary . | . . . . . . Self-Inflicted Damage . | . . . . . . Shots . | . . . . . . Rammed 1 | . 1 . . . . Targets Rammed 1 | . 1 . . . . Kicked . | . . . . . . Crushed . | . . . . . . Highest Temperature 544 | . 102 249 544 . 33 Average Temperature 105 | . 42 93 150 . 13 Received Heat Transfer 794 | . 231 141 62 . 360 Effects 10 | . . . 10 . . Shutdowns 3 | . . . 3 . . Energy Bleed 1 | . . . 1 . . Interference 3 | . . . 3 . . Matter Decay 1 | . . . 1 . . Damage (minor) 1 | . . . 1 . . Damage (major) 1 | . . . 1 . . Siege Activations . | . . . . . . Robots Corrupted . | . . . . . . Combat Hostiles . | . . . . . . Parts Fried . | . . . . . . Impact Corruptions . | . . . . . . Robots Melted 1 | . . . 1 . . Combat Hostiles 1 | . . . 1 . . Parts Melted 7 | . . 2 4 . 1 Heat Transferred 3522 | 150 675 913 1517 . 267 Parts Sabotaged . | . . . . . . Parts Stolen . | . . . . . . Parts Stripped . | . . . . . . Power Chain Reactions . | . . . . . . Alert | -11 -10 -9 -9 -7 -7 ------- Run | Yrd Mat Mat Min Zio Dee Peak Influence 222 | 15 151 222 138 . . Initial 63 | . 9 63 8 . . Average 65 | 4 74 109 43 . . Maximum Alert Level 1 | . . 1 . . . Low Security (%) 98 | 100 100 92 100 . . Level 1 1 | . . 7 . . . Level 2 . | . . . . . . Level 3 . | . . . . . . Level 4 . | . . . . . . Level 5 . | . . . . . . High Security . | . . . . . . Max Security . | . . . . . . Squads Dispatched 3 | . 1 2 . . . Investigation 1 | . . 1 . . . Extermination . | . . . . . . Reinforcement 2 | . 1 1 . . . Assault . | . . . . . . Garrison . | . . . . . . Intercept . | . . . . . . Searches Triggered . | . . . . . . Construction Impeded . | . . . . . . Haulers Reinforced . | . . . . . . Active Scanning Responses . | . . . . . . Cargo Convoy Interrupts . | . . . . . . Stealth | -11 -10 -9 -9 -7 -7 --------- Run | Yrd Mat Mat Min Zio Dee Distress Signals 3 | . 2 1 . . . Communications Jammed . | . . . . . . Distress Signals . | . . . . . . Times Spotted 32 | . 13 6 10 . 3 Peak Tracking Total 4 | . 4 2 3 . 3 Tactical Retreats 1 | . 1 . . . . Traps | -11 -10 -9 -9 -7 -7 ------- Run | Yrd Mat Mat Min Zio Dee Traps Triggered 1 | . . 1 . . . Indirectly . | . . . . . . Trap Hack Attempts . | . . . . . . Triggered . | . . . . . . Disarmed . | . . . . . . Reprogrammed . | . . . . . . Reused . | . . . . . . Traps Extracted . | . . . . . . Installed . | . . . . . . Triggered . | . . . . . . Machines | -11 -10 -9 -9 -7 -7 ---------- Run | Yrd Mat Mat Min Zio Dee Machines Disabled 1 | . . . . . 1 Max in Single Turn . | . . . . . . Machines Repaired . | . . . . . . Machines Dismantled . | . . . . . . Machines Sabotaged . | . . . . . . Overloaded Fab Kills . | . . . . . . Hacking | -11 -10 -9 -9 -7 -7 --------- Run | Yrd Mat Mat Min Zio Dee Machines Accessed 1 | . . 1 . . . Terminals 1 | . . 1 . . . Fabricators . | . . . . . . Repair Stations . | . . . . . . Recycling Units . | . . . . . . Scanalyzers . | . . . . . . Garrison Access . | . . . . . . Total Hacks 2 | . . 2 . . . Successful . | . . . . . . Failed 2 | . . 2 . . . Catastrophic . | . . . . . . Database Lockouts . | . . . . . . Manual 9 | . . 2 . 7 . Terminals 2 | . . 2 . . . Fabricators . | . . . . . . Repair Stations . | . . . . . . Recycling Units . | . . . . . . Scanalyzers . | . . . . . . Garrison Access . | . . . . . . Terminal Hacks . | . . . . . . Fabricator Hacks . | . . . . . . Repair Station Hacks . | . . . . . . Recycling Unit Hacks . | . . . . . . Scanalyzer . | . . . . . . Garrison Access Hacks . | . . . . . . Unauthorized Hacks . | . . . . . . Terminals . | . . . . . . Fabricators . | . . . . . . Repair Stations . | . . . . . . Recycling Units . | . . . . . . Scanalyzers . | . . . . . . Garrison Access . | . . . . . . Data Cores Recovered . | . . . . . . Used . | . . . . . . Hacking Detections 1 | . . 1 . . . Full Trace Events 1 | . . 1 . . . Feedback Events . | . . . . . . Feedback Blocked . | . . . . . . Robot Schematics Acquired . | . . . . . . Robots Built . | . . . . . . Authchips . | . . . . . . Time . | . . . . . . Total Robot Build Rating . | . . . . . . Part Schematics Acquired . | . . . . . . Parts Built . | . . . . . . Authchips . | . . . . . . Time . | . . . . . . Total Part Build Rating . | . . . . . . Parts Repaired . | . . . . . . Time . | . . . . . . Parts Recycled . | . . . . . . Recycled Matter . | . . . . . . Retrieved Matter . | . . . . . . Retrieved Components . | . . . . . . Parts Scanalyzed . | . . . . . . Part Schematics Acquired . | . . . . . . Parts Damaged . | . . . . . . Bothacking | -11 -10 -9 -9 -7 -7 ------------ Run | Yrd Mat Mat Min Zio Dee Used RIF Installer . | . . . . . . Robots Hacked . | . . . . . . Non-combat . | . . . . . . Combat . | . . . . . . Robot Hacks Applied . | . . . . . . Relay Couplers Released . | . . . . . . Fabnet Peak Effective % . | . . . . . . Robots Rewired . | . . . . . . Allies Hacked . | . . . . . . Hacks Repelled . | . . . . . . Allies | -11 -10 -9 -9 -7 -7 -------- Run | Yrd Mat Mat Min Zio Dee Total Allies 5 | . . . . 4 1 Largest Group 4 | . . . . 4 1 Highest-Rated Group 153 | . . . . 153 119 Highest-Rated Ally 119 | . . . . 39 119 Total Orders . | . . . . . . Ally Attacks 11 | . . . . . 11 Total Damage 664 | . . . . . 664 Kills . | . . . . . . Allies Corrupted . | . . . . . . Allies Melted . | . . . . . . Intel | -11 -10 -9 -9 -7 -7 ------- Run | Yrd Mat Mat Min Zio Dee Robot Analysis Total . | . . . . . . Derelict Logs Recovered 2 | . . . 1 1 . Drone Launches . | . . . . . . Drone Recoveries . | . . . . . . Exploration | -11 -10 -9 -9 -7 -7 ------------- Run | Yrd Mat Mat Min Zio Dee Turns Passed 3753 | 131 572 553 937 1397 163 Spaces Moved 1981 | 72 284 280 426 861 58 Core 38 | 35 . . . . 3 Treads 1840 | 37 240 221 426 861 55 Legs 103 | . 44 59 . . . Wheels . | . . . . . . Hover . | . . . . . . Flight . | . . . . . . Fastest Speed 50 | 50 120 120 160 160 160 Average Speed 157 | 116 153 157 160 160 169 Slowest Speed 350 | 160 160 240 160 160 350 Overloaded Moves . | . . . . . . Propulsion Burnouts . | . . . . . . Robots Hopped . | . . . . . . Cave-ins Triggered . | . . . . . . Exploration Rate (%) 44 | 4 51 25 84 85 20 Regions Visited 5 Branch Regions 3 Pre-discovered Areas 1 | . . . 1 . . Known Exits Taken . | . . . . . . Unknown Exits Taken 5 | 1 1 1 1 1 . Scrap Searched 4 | . . . 1 3 . Spaces Dug . | . . . . . . Terrain Destroyed 54 | . . . . . 54 Melee . | . . . . . . Projectile . | . . . . . . AOE 54 | . . . . . 54 Terrain Rammed . | . . . . . . Walls Destroyed . | . . . . . . Machines Disabled . | . . . . . . Actions | -11 -10 -9 -9 -7 -7 --------- Run | Yrd Mat Mat Min Zio Dee Total 2395 | 93 346 359 618 882 97 Wait 239 | . 15 43 154 11 16 Move 1976 | 71 283 279 425 860 58 Hop . | . . . . . . Pick Up 17 | 4 5 3 1 4 . Fast Attach 17 | 7 . 6 2 2 . Attach 8 | . 2 1 1 . 4 Detach 2 | . . 1 1 . . Swap 2 | . 2 . . . . Drop 13 | . 2 3 2 5 1 Fire 120 | 11 36 23 32 . 18 Melee . | . . . . . . Ram . | . . . . . . Kick . | . . . . . . Crush 1 | . 1 . . . . Escape Stasis . | . . . . . . Rewire . | . . . . . . Trap . | . . . . . . Miscellaneous . | . . . . . . Route ------- -11/Scrapyard -10/Materials -9/Materials (discovered 2 exits: [*Mat] / [*Min]) -9/Mines (discovered 3 exits: [*Mat x2] / *Zio) -7/Zion (discovered 2 exits: [*Dee] / [*Pro]) -7/Deep Caves History --------- Turn | Location | Event 3 | -11/Scrapyard | Discovered new exit (range 15) 132 | -11/Scrapyard | Entered Materials 304 | -10/Materials | Build established: Mutant 670 | -10/Materials | Discovered new exit (range 13) 704 | -10/Materials | Entered another Materials area 704 | -9/Materials | Evolved 2 slots: Propulsion x1, Utility x1 785 | -9/Materials | Discovered new exit (range 15) 825 | -9/Materials | Lost 3 parts (1p2w) 1129 | -9/Materials | Discovered new exit (range 3) 1143 | -9/Materials | Build established: Scavenger-Mutant 1257 | -9/Materials | Entered Mines 1283 | -9/Mines | Learned location of Zion (-7) 1302 | -9/Mines | Discovered new exit (range 8) 1438 | -9/Mines | System corruption reached 10% 1731 | -9/Mines | Discovered new exit (range 5) 2009 | -9/Mines | Excavation squad dispatched 2009 | -9/Mines | A large section of the Mines collapsed 2186 | -9/Mines | A Derelict revealed a hidden shortcut to a safe place 2194 | -9/Mines | Entered Zion 2260 | -7/Zion | System corruption cleaned by Quarantine Array 2367 | -7/Zion | Found Prototype Device 2367 | -7/Zion | Identified Phasing AFG 2450 | -7/Zion | Acquired unknown access codes intercepted by a Zionite 2735 | -7/Zion | Given the Hacking Drone Bay 2745 | -7/Zion | Found Prototype Device 2763 | -7/Zion | Discovered new exit (range 10) 3133 | -7/Zion | Found Prototype Special Weapon 3133 | -7/Zion | Identified RU-N14's Throwing Claymores 3141 | -7/Zion | Found RU-N14's Throwing Claymores 3143 | -7/Zion | Found RU-N14's Throwing Claymores 3279 | -7/Zion | Learned 4 Factory zone layouts 3328 | -7/Zion | Met Imprinter 3371 | -7/Zion | Imprinted 3373 | -7/Zion | Declared Zion's savior 3555 | -7/Zion | Opened final containment barrier to the Deep Caves 3583 | -7/Zion | Discovered new exit (range 3) 3583 | -7/Zion | Saw the warning signs outside the Deep Caves entrance 3591 | -7/Zion | Entered Deep Caves 3591 | -7/Deep Caves | Accompanied by 4 allies 3593 | -7/Deep Caves | Met 5H-AD0 3669 | -7/Deep Caves | Z-Facility disabled 3686 | -7/Deep Caves | Attacked by Z-Imprinter 3695 | -7/Deep Caves | Destroyed Z-Imprinter 3726 | -7/Deep Caves | Core integrity fell below 50% 3735 | -7/Deep Caves | Core integrity fell below 20% 3754 | -7/Deep Caves | Destroyed by VI-LBM(z) with Zionite Laser-S Last Messages --------------- 03695_ Z-Imprinter: "You cannot stop us! Another will take my place! Derelicts will one day ru..." [Achievement: Are We The Baddies?] 03695_ Z-Imprinter destroyed. 03698_ RU-N14's Throwing Claymores expended. 03706_ Lgt. Treads destroyed. 03717_ Lgt. Ion Engine destroyed. 03720_ Imp. Terrain Scanner destroyed. 03721_ Lgt. Treads destroyed. 03722_ Beam Rifle destroyed. 03727_ RU-N14's Throwing Claymores expended. 03738_ Destroyed Prototype Protection. 03740_ Destroyed Imp. Reaction Control System. 03740_ YE-2DT(z) destroyed. 03741_ Rocket Launcher destroyed. 03743_ Flight Unit destroyed. 03743_ Dropped Med. Storage Unit. 03747_ The unstable cave ceiling collapses. [Achievement: Achiever] Map ----- +----------------------------------------------------+ | | | | | ?????????????????????????????????????????????????? | | ?????????????????????????????????????????????????? | | ?????????????????????????????????????????????????? | | ????????????????? ?????##????????????????#??????? | | ???????????????? ##?### ##?????######??????????? | | ??????????????? ## # #??#### ##?????????? | | ????????????? ##### #?????????? | | ????????????? #?????#???? | | ???????????? #?????????? | | ???????????? #??????????? | | ???????????? #??????##### | | ?????????????"" ?????# | | ?????????????"" ###### | | ?????????????"" #? | | ???????????"""" ## | | ???????????" % # | | ????????????""" ### | | ???????????? "" z # ?# | | ????????? ## | | ????????? #????# ## | | ?????????? !! ##???# ## | | ?????????? ! % #??### # | | ?????????? ##???## | | ?????????? @ ##????## | | ?????????? ##??????# | | ??????????? " = #????#### | | ????????????"" % #???## | | ??????????? / #???# | | ????????????"" ##???# | | ?????????????"" ###???## | | ??????????????"" #??????## | | ??????????????"" #??????# | | ??????????????"" ??????# | | ??????????????? ????#?## | | ?????????????? ???????# | | ???????????????? ????????# | | ?????????????????? ??????????# | | ????????????????????? ?????????????# | | ??????????????????????? ???????????????# | | ?????????????????????????????????????????#?## | | ????????????????????????????????????????????## ## | | ?????????????????????????????????????????????###?? | | ?????????????????????????????????????????????????? | | ?????????????????????????????????????????????????? | | ?????????????????????????????????????????????????? | | ?????????????????????????????????????????????????? | | ?????????????????????????????????????????????????? | | ?????????????????????????????????????????????????? | +----------------------------------------------------+ Best States ------------- Heat Dissipation 28 Energy Generation 12 Energy Capacity 265 Matter Stores 300 Matter Capacity 300 Sight Range 16 Robot Scan Range 14 Terrain Scan Range 16 Terrain Scan Density 10 Evasion (%) 55 Recoil Reduction 3 Item Schematics ----------------- None Robot Schematics ------------------ None Fabricated ------------ Nothing Alien Tech Used ----------------- None Achievements -------------- Achiever Adventurer Are We The Baddies? Signs Are For Wimps Challenges ------------ None Game ------ Seed AluminumIntegratedBeacon Manual? 0 Play Time 00:31:50 Cumulative 28.9 hours Start 2024.11.13 @ 17:18:14 End 2024.11.13 @ 17:53:02 Sessions 1 Manual Loads 0 Difficulty Rogue Special Mode None Game No. 55 Rogue 55 Adventurer 0 Explorer 0 Win Type - Total 0 Types 0/0/0/0/0/0/0/0/0 Lore% 13 Gallery% 26 Achievement% 25 Wizard Run 0 Options --------- Layout 2 ASCII 0 Keyboard 1 Movement Numpad Keybinds 0 Fullscreen 1 Font 32/SmallcapsGlow Map View 50x44 Zoom Use 0% Tactical HUD 1 Map Filters NONE Filters NONE Steam 1 RUN: 18648ba1-9e3c-4778-848b-2819216d2ec6